fUST/lending_fUST_20250501
["ID","MTS","AMOUNT","RATE_DAILY","PERIOD"]
[359510997,1746081041387,-500.0,0.00030585,2]
[359510999,1746081041401,-500.0,0.00030585,2]
[359511001,1746081041409,-500.0,0.00030585,2]
[359511003,1746081041419,-500.0,0.00030585,2]
[359511005,1746081041428,-500.0,0.00030585,2]
[359511007,1746081041438,-500.0,0.00030585,2]
[359511009,1746081041447,-500.0,0.00030585,2]
[359511011,1746081041457,-500.0,0.00030585,2]
[359511013,1746081041467,-500.0,0.00030585,2]
[359511015,1746081041476,-500.0,0.00030585,2]
[359511017,1746081041486,-500.0,0.00030585,2]
[359511019,1746081041495,-118.73021807,0.00030585,2]
[359511023,1746081041524,-360.77973849,0.00030585,2]
[359511178,1746081043905,-20.49004344,0.00030585,2]
[359511179,1746081043914,-7.70090454,0.00030585,2]
[359511189,1746081046769,-492.29909546,0.00030585,2]
[359511190,1746081046779,-438.26589352,0.00030585,2]
[359511191,1746081046789,-500.0,0.00030585,2]
[359511192,1746081046798,-500.0,0.00030585,2]
[359511193,1746081046807,-500.0,0.00030585,2]
[359511194,1746081046817,-500.0,0.00030585,2]
[359511195,1746081046826,-500.0,0.00030585,2]
[359511196,1746081046835,-437.29120014,0.00030585,2]
[359511197,1746081046871,-62.70879986,0.00030585,2]
[359511198,1746081046880,-500.0,0.00030585,2]
[359511199,1746081046889,-500.0,0.00030585,2]
[359511200,1746081046898,-500.0,0.00030585,2]
[359511201,1746081046907,-500.0,0.00030585,2]
[359511202,1746081046927,-209.20040005,0.00030585,2]
[359511203,1746081047845,-290.79959995,0.00030585,2]
[359511204,1746081047855,-500.0,0.00030585,2]
[359511205,1746081047865,-500.0,0.00030585,2]
[359511206,1746081047875,-500.0,0.00030585,2]
[359511207,1746081047885,-500.0,0.00030585,2]
[359511208,1746081047894,-500.0,0.00030585,2]
[359511209,1746081047904,-500.0,0.00030585,2]
[359511210,1746081047913,-500.0,0.00030585,2]
[359511211,1746081047923,-500.0,0.00030585,2]
[359511212,1746081047933,-500.0,0.00030585,2]
[359511213,1746081047943,-500.0,0.00030585,2]
[359511214,1746081047953,-500.0,0.00030585,2]
[359511215,1746081047963,-500.0,0.00030585,2]
[359511216,1746081047973,-357.90111969,0.00030585,2]
[359511224,1746081244857,-162.2624692,0.00028559,2]
[359511230,1746081291856,800.18329203,0.000279,2]
[359511232,1746081296417,166.0,0.00027397,3]
[359511233,1746081303183,200.0,0.00027,3]
[359511234,1746081303209,247.77808719,0.00025,2]
[359511240,1746081381014,-300.0,0.00028361,2]
[359511241,1746081381036,-2637.0,0.00028362,2]
[359511250,1746082034139,-240.83607317,0.00024444,4]
[359511251,1746082038095,-190.3881246,0.00024444,4]
[359511252,1746082156124,-698.51439466,0.00024444,4]
[359511253,1746082156146,-164.94915705,0.0002525,2]
[359511254,1746082156168,-6675.0683401,0.0002535,2]
[359511255,1746082156189,-300.0,0.00025439,2]
[359511256,1746082156213,-500.0,0.00025439,2]
[359511257,1746082156234,-500.0,0.0002544,2]
[359511258,1746082156256,-500.0,0.0002544,2]
[359511259,1746082156277,-500.0,0.0002544,2]
[359511260,1746082156298,-500.0,0.0002544,2]
[359511261,1746082156318,-193.14288463,0.0002544,2]
[359511262,1746082156343,-500.0,0.0002544,2]
[359511263,1746082156363,-500.0,0.0002544,2]
[359511264,1746082156384,-500.0,0.0002544,2]
[359511265,1746082156407,-500.0,0.0002544,2]
[359511266,1746082156429,-500.0,0.0002544,2]
[359511267,1746082156450,-371.05651322,0.0002544,2]
[359511268,1746082156472,-220.89082531,0.0002544,2]
[359511269,1746082156493,-500.0,0.0002544,2]
[359511270,1746082156518,-500.0,0.0002544,2]
[359511271,1746082156540,-500.0,0.0002544,2]
[359511272,1746082156560,-500.0,0.0002544,2]
[359511273,1746082156581,-500.0,0.0002544,2]
[359511274,1746082156602,-500.0,0.0002544,2]
[359511275,1746082156622,-500.0,0.0002544,2]
[359511276,1746082156643,-500.0,0.0002544,2]
[359511277,1746082156666,-500.0,0.0002544,2]
[359511278,1746082156686,-500.0,0.0002544,2]
[359511279,1746082156707,-500.0,0.0002544,2]
[359511280,1746082156729,-500.0,0.0002544,2]
[359511281,1746082156750,-500.0,0.0002544,2]
[359511282,1746082156770,-500.0,0.0002544,2]
[359511283,1746082156791,-500.0,0.0002544,2]
[359511284,1746082156812,-200.0,0.0002544,2]
[359511285,1746082156833,-500.0,0.0002544,2]
[359511286,1746082156855,-500.0,0.0002544,2]
[359511287,1746082156876,-500.0,0.0002544,2]
[359511288,1746082156895,-500.0,0.0002544,2]
[359511289,1746082156918,-500.0,0.0002544,2]
[359511290,1746082156943,-500.0,0.0002544,2]
[359511291,1746082156968,-500.0,0.0002544,2]
[359511292,1746082156990,-500.0,0.0002544,2]
[359511293,1746082157015,-500.0,0.0002544,2]
[359511294,1746082157041,-500.0,0.0002544,2]
[359511295,1746082157138,-500.0,0.0002544,2]
[359511296,1746082157160,-500.0,0.0002544,2]
[359511297,1746082157183,-500.0,0.0002544,2]
[359511298,1746082157204,-500.0,0.0002544,2]
[359511299,1746082157229,-500.0,0.0002544,2]
[359511300,1746082157251,-500.0,0.0002544,2]
[359511301,1746082157272,-500.0,0.0002544,2]
[359511302,1746082157294,-500.0,0.0002544,2]
[359511303,1746082157316,-500.0,0.0002544,2]
[359511304,1746082157337,-500.0,0.0002544,2]
[359511305,1746082157359,-500.0,0.0002544,2]
[359511306,1746082157379,-500.0,0.0002544,2]
[359511307,1746082157401,-500.0,0.0002544,2]
[359511308,1746082157425,-500.0,0.0002544,2]
[359511309,1746082157446,-500.0,0.0002544,2]
[359511310,1746082157467,-500.0,0.0002544,2]
[359511311,1746082157488,-500.0,0.0002544,2]
[359511312,1746082157509,-500.0,0.0002544,2]
[359511313,1746082157531,-328.57501292,0.0002544,2]
[359511314,1746082157554,-500.0,0.0002544,2]
[359511315,1746082157575,-500.0,0.0002544,2]
[359511316,1746082157595,-500.0,0.0002544,2]
[359511317,1746082157617,-500.0,0.0002544,2]
[359511318,1746082157641,-500.0,0.0002544,2]
[359511319,1746082157669,-500.0,0.0002544,2]
[359511320,1746082157710,-500.0,0.0002544,2]
[359511321,1746082157753,-500.0,0.0002544,2]
[359511322,1746082157790,-500.0,0.0002544,2]
[359511323,1746082157826,-500.0,0.0002544,2]
[359511324,1746082157868,-511.91953529,0.0002544,2]
[359511325,1746082157903,-511.91953529,0.0002544,2]
[359511326,1746082157940,-511.91953529,0.0002544,2]
[359511327,1746082157975,-511.91953529,0.0002544,2]
[359511328,1746082158009,-511.91953529,0.0002544,2]
[359511329,1746082158042,-511.91953529,0.0002544,2]
[359511330,1746082158074,-511.91953529,0.0002544,2]
[359511331,1746082158107,-511.91953529,0.0002544,2]
[359511332,1746082158140,-511.91953529,0.0002544,2]
[359511333,1746082158173,-511.91953529,0.0002544,2]
[359511334,1746082158207,-511.91953529,0.0002544,2]
[359511335,1746082158241,-511.91953529,0.0002544,2]
[359511336,1746082158275,-511.91953529,0.0002544,2]
[359511337,1746082158307,-511.91953529,0.0002544,2]
[359511338,1746082158338,-500.0,0.0002544,2]
[359511339,1746082158371,-511.91953529,0.0002544,2]
[359511340,1746082158405,-500.0,0.0002544,2]
[359511341,1746082158436,-511.91953529,0.0002544,2]
[359511342,1746082158467,-500.0,0.0002544,2]
[359511343,1746082158488,-511.91953529,0.0002544,2]
[359511344,1746082158654,-500.0,0.0002544,2]
[359511345,1746082158678,-511.91953529,0.0002544,2]
[359511346,1746082158700,-500.0,0.0002544,2]
[359511347,1746082158722,-511.91953529,0.0002544,2]
[359511348,1746082158743,-500.0,0.0002544,2]
[359511349,1746082158765,-511.91953529,0.0002544,2]
[359511350,1746082158786,-500.0,0.0002544,2]
[359511351,1746082158808,-511.91953529,0.0002544,2]
[359511352,1746082158829,-500.0,0.0002544,2]
[359511353,1746082158850,-511.91953529,0.0002544,2]
[359511354,1746082158871,-500.0,0.0002544,2]
[359511355,1746082158892,-500.0,0.0002544,2]
[359511356,1746082158914,-511.91953529,0.0002544,2]
[359511357,1746082158936,-500.0,0.0002544,2]
[359511358,1746082158960,-511.91953529,0.0002544,2]
[359511359,1746082158982,-511.91953529,0.0002544,2]
[359511360,1746082159003,-500.0,0.0002544,2]
[359511361,1746082159024,-500.0,0.0002544,2]
[359511362,1746082159044,-500.0,0.0002544,2]
[359511363,1746082159066,-511.91953529,0.0002544,2]
[359511364,1746082159086,-500.0,0.0002544,2]
[359511365,1746082159107,-511.91953529,0.0002544,2]
[359511366,1746082159128,-500.0,0.0002544,2]
[359511367,1746082159149,-511.91953529,0.0002544,2]
[359511368,1746082159172,-500.0,0.0002544,2]
[359511369,1746082159194,-511.91953529,0.0002544,2]
[359511370,1746082159216,-511.91953529,0.0002544,2]
[359511371,1746082159237,-500.0,0.0002544,2]
[359511372,1746082159259,-500.0,0.0002544,2]
[359511373,1746082159282,-511.91953529,0.0002544,2]
[359511374,1746082159303,-500.0,0.0002544,2]
[359511375,1746082159325,-500.0,0.0002544,2]
[359511376,1746082159348,-500.0,0.0002544,2]
[359511377,1746082159372,-511.91953529,0.0002544,2]
[359511378,1746082159395,-500.0,0.0002544,2]
[359511379,1746082159417,-500.0,0.0002544,2]
[359511380,1746082159439,-500.0,0.0002544,2]
[359511381,1746082159462,-510.80161918,0.0002544,2]
[359511382,1746082159484,-500.0,0.0002544,2]
[359511383,1746082159505,-500.0,0.0002544,2]
[359511384,1746082159526,-500.0,0.0002544,2]
[359511385,1746082159548,-500.0,0.0002544,2]
[359511386,1746082159569,-500.0,0.0002544,2]
[359511387,1746082159590,-500.0,0.0002544,2]
[359511388,1746082159611,-500.0,0.0002544,2]
[359511389,1746082159631,-500.0,0.0002544,2]
[359511390,1746082159652,-500.0,0.0002544,2]
[359511391,1746082159673,-500.0,0.0002544,2]
[359511392,1746082159695,-500.0,0.0002544,2]
[359511393,1746082159716,-500.0,0.0002544,2]
[359511394,1746082159739,-505.02831077,0.0002544,2]
[359511395,1746082159762,-505.02831077,0.0002544,2]
[359511396,1746082159787,-500.0,0.0002544,2]
[359511397,1746082159808,-500.0,0.0002544,2]
[359511398,1746082159831,-505.02831077,0.0002544,2]
[359511399,1746082159854,-300.0,0.0002544,2]
[359511400,1746082159876,-505.02831077,0.0002544,2]
[359511401,1746082159898,-505.02831077,0.0002544,2]
[359511402,1746082159922,-505.02831077,0.0002544,2]
[359511403,1746082159947,-505.02831077,0.0002544,2]
[359511404,1746082159974,-505.02831077,0.0002544,2]
[359511405,1746082159998,-505.02831077,0.0002544,2]
[359511406,1746082160021,-505.02831077,0.0002544,2]
[359511407,1746082160047,-505.02831077,0.0002544,2]
[359511408,1746082160069,-505.02831077,0.0002544,2]
[359511409,1746082160092,-505.02831077,0.0002544,2]
[359511410,1746082160112,-27473.9410527,0.00025441,2]
[359511411,1746082160135,-500.0,0.000255,2]
[359511412,1746082160156,-500.0,0.000255,2]
[359511413,1746082160177,-500.0,0.000255,2]
[359511414,1746082160198,-500.0,0.000255,2]
[359511415,1746082160219,-500.0,0.000255,2]
[359511416,1746082160241,-300.0,0.000255,2]
[359511417,1746082160263,-250.0,0.0002554,2]
[359511418,1746082160284,-197.343602,0.00025645,2]
[359511419,1746082160304,-300.0,0.00026209,2]
[359511420,1746082160324,-300.0,0.0002621,2]
[359511421,1746082160344,-300.0,0.0002621,2]
[359511422,1746082160364,-300.0,0.0002621,2]
[359511423,1746082160385,-1200.0,0.0002621,2]
[359511424,1746082160406,-145078.15431297,0.00026211,5]
[359511425,1746082163258,-1000.5198928,0.00025424,2]
[359511426,1746082163282,-17140.51385341,0.00026211,5]
[359511427,1746082171104,-242.05085675,0.00026211,2]
[359511453,1746082231908,-533.45552802,0.00024111,2]
[359511455,1746082231919,-2243.0,0.00026,2]
[359511457,1746082231929,-983.33364731,0.00026111,2]
[359511459,1746082231939,-300.0,0.0002621,2]
[359511460,1746082231948,-297.0,0.0002621,2]
[359511461,1746082231958,-1200.0,0.0002621,2]
[359511462,1746082231969,-300.0,0.0002621,2]
[359511463,1746082231979,-51963.31351683,0.00026211,2]
[359511464,1746082231990,-38991.17082142,0.00026211,3]
[359511477,1746082237966,-21.15423607,0.0002621,2]
[359511618,1746082239327,-279.33595939,0.0002621,2]
[359511620,1746082239337,-500.0,0.0002621,2]
[359511622,1746082239347,-238.46584757,0.0002621,2]
[359511624,1746082239356,-500.0,0.0002621,2]
[359511625,1746082239366,-163.11486071,0.0002621,2]
[359511626,1746082239375,-500.0,0.0002621,2]
[359511627,1746082239384,-500.0,0.0002621,2]
[359511628,1746082239393,-190.18265624,0.0002621,2]
[359511629,1746082239469,-319.00627925,0.0002621,2]
[359511630,1746082239480,-524.54342503,0.0002621,2]
[359511631,1746082239490,-500.0,0.0002621,2]
[359511632,1746082239499,-500.0,0.0002621,2]
[359511633,1746082239508,-417.12273695,0.0002621,2]
[359511634,1746082239518,-500.0,0.0002621,2]
[359511635,1746082239527,-500.0,0.0002621,2]
[359511636,1746082239536,-500.0,0.0002621,2]
[359511637,1746082239546,-500.0,0.0002621,2]
[359511638,1746082239555,-500.0,0.0002621,2]
[359511639,1746082239564,-500.0,0.0002621,2]
[359511640,1746082239574,-500.0,0.0002621,2]
[359511641,1746082239583,-500.0,0.0002621,2]
[359511642,1746082239593,-501.08016192,0.0002621,2]
[359511643,1746082239602,-500.0,0.0002621,2]
[359511644,1746082239614,-500.0,0.0002621,2]
[359511645,1746082239624,-500.0,0.0002621,2]
[359511646,1746082239634,-500.0,0.0002621,2]
[359511647,1746082239644,-1375.15672758,0.00026211,3]
[359511648,1746082239656,-450898.65183362,0.00026211,5]
[359511649,1746082239666,-9558.6952398,0.00026211,2]
[359511650,1746082239675,-173.01635,0.00026514,2]
[359511651,1746082239684,-152.0,0.00026519,2]
[359511652,1746082239693,-1068.81258896,0.00026851,2]
[359511654,1746082239703,-50000.0,0.00026899,2]
[359511656,1746082239713,-158.24,0.00026899,2]
[359511658,1746082239722,-208.78814896,0.000269,16]
[359511660,1746082239732,-107764.093476,0.0002694,2]
[359511662,1746082239741,-2357.20455234,0.0002694,2]
[359511664,1746082239752,-9658.681464,0.00026952,2]
[359511666,1746082239762,-500.0,0.00026973,2]
[359511668,1746082239771,-500.0,0.00026973,2]
[359511670,1746082239781,-484.10294183,0.00026973,2]
[359511672,1746082239790,-500.0,0.00026973,2]
[359511674,1746082239799,-500.0,0.00026973,2]
[359511676,1746082239809,-500.0,0.00026973,2]
[359511678,1746082239818,-500.0,0.00027,2]
[359511680,1746082239828,-500.0,0.00027,2]
[359511682,1746082239837,-600.0,0.00027144,2]
[359511684,1746082239847,-160.0,0.00027387,3]
[359511686,1746082239857,-182.07995741,0.00027387,3]
[359511688,1746082239866,-53882.046738,0.00027387,2]
[359511690,1746082239876,-1178.60227617,0.00027387,2]
[359511692,1746082239887,-225.386337,0.00027397,120]
[359511695,1746082239896,-864.635559,0.00027397,2]
[359511696,1746082239906,-1019.0,0.000282,14]
[359511699,1746082239916,-420.0,0.00028359,2]
[359511700,1746082239925,-22263.0,0.00028362,2]
[359511702,1746082239936,-416.52713714,0.00028373,5]
[359511704,1746082239946,-500.0,0.00028373,5]
[359511707,1746082239955,-1284.7414879,0.00028387,2]
[359511709,1746082239965,-1680.0,0.00028485,2]
[359511711,1746082239976,-900.0,0.00028788,5]
[359511712,1746082239986,-1068.81258891,0.00028845,2]
[359511714,1746082239996,-533.45552802,0.00029111,2]
[359511716,1746082240005,-983.33364727,0.00029147,2]
[359511719,1746082240019,-151.0,0.000292,11]
[359511720,1746082240029,-208.78814895,0.00029233,20]
[359511722,1746082240038,-1439.04422888,0.00029359,2]
[359511725,1746082240048,-53882.046738,0.00029449,2]
[359511727,1746082240058,-1178.60227617,0.00029449,2]
[359511729,1746082240068,-53882.046738,0.00029449,2]
[359511730,1746082240077,-1178.60227617,0.00029449,2]
[359511733,1746082240088,-7861.31412969,0.00029459,2]
[359511735,1746082240098,-53882.046738,0.00029529,2]
[359511737,1746082240107,-1178.60227617,0.00029529,2]
[359511738,1746082240116,-841.10298755,0.00029538,3]
[359511741,1746082240126,-160.0,0.00029538,3]
[359511742,1746082240136,-313.5174939,0.00029538,3]
[359511744,1746082240145,-12595.7684382,0.00029539,3]
[359511746,1746082240155,-612.22383995,0.00029573,5]
[359511748,1746082240164,-250.0,0.000299,2]
[359511750,1746082240174,-1200.0,0.00030432,5]
[359511752,1746082240183,-160.0,0.00030535,2]
[359511754,1746082240192,-500.0,0.00030573,5]
[359511756,1746082240201,-500.0,0.00030573,5]
[359511758,1746082240212,-500.0,0.00030573,5]
[359511760,1746082240222,-160.0,0.00030576,3]
[359511762,1746082240231,-421.4777418,0.00030576,3]
[359511764,1746082240240,-160.0,0.00030596,2]
[359511766,1746082240250,-400.0,0.00030684,2]
[359511768,1746082240260,-1068.81258891,0.0003084,2]
[359511771,1746082240270,-5000.0,0.000309,2]
[359511773,1746082240280,-4872.04648865,0.00030948,2]
[359511774,1746082240290,-619.0,0.00030958,2]
[359511776,1746082240300,-1000.0,0.00030979,5]
[359511778,1746082240309,-1000.0,0.00030979,5]
[359511780,1746082240319,-1000.0,0.00030979,5]
[359511782,1746082240328,-1000.0,0.00030979,5]
[359511784,1746082240337,-172.897,0.00031242,2]
[359511786,1746082240347,-155.49525,0.00031242,2]
[359511788,1746082240356,-250.0,0.00031433,2]
[359511790,1746082240366,-208.78814895,0.00031567,25]
[359511792,1746082240375,-160.0,0.00031966,2]
[359511795,1746082240385,-227.95403003,0.00032075,5]
[359511797,1746082240394,-983.33364727,0.00032184,2]
[359511798,1746082240403,-1000.0,0.00032452,5]
[359511800,1746082240414,-1002.91119433,0.00032452,5]
[359511803,1746082240423,-450.70531691,0.00032452,2]
[359511805,1746082240433,-1000.0,0.00032452,5]
[359511806,1746082240442,-1000.0,0.00032452,5]
[359511808,1746082240453,-1000.0,0.00032479,5]
[359511810,1746082240462,-1000.0,0.00032479,2]
[359511813,1746082240472,-160.0,0.00032554,2]
[359511814,1746082240481,-160.0,0.00032554,2]
[359511817,1746082240491,-182.07995741,0.00032554,2]
[359511819,1746082240501,-160.0,0.00032567,2]
[359511821,1746082240510,-160.0,0.00032567,2]
[359511822,1746082240520,-160.0,0.00032567,2]
[359511824,1746082240529,-308.392499,0.000327,30]
[359511827,1746082240539,-1068.81258891,0.00032834,2]
[359511829,1746082240547,-1178.60227617,0.00032867,2]
[359511831,1746082240557,-199.0,0.00032877,3]
[359511833,1746082240566,-223.92676088,0.00032877,7]
[359511834,1746082240576,-1178.60227617,0.0003289,2]
[359511844,1746082240657,-3272.03,0.000329,7]
[359511847,1746082240667,-48155.16,0.000329,30]
[359511849,1746082240676,-1903.42,0.000329,30]
[359511851,1746082240686,-1420.58,0.000329,30]
[359511853,1746082240695,-421.4777418,0.000329,30]
[359511855,1746082240704,-500.0,0.00032973,5]
[359511856,1746082240714,-500.0,0.00032973,5]
[359511859,1746082240723,-500.0,0.00032973,5]
[359511861,1746082240732,-500.0,0.00032973,5]
[359511863,1746082240742,-500.57949996,0.00032973,5]
[359511864,1746082240751,-500.0,0.00032973,5]
[359511866,1746082240760,-3535.80682851,0.0003299,2]
[359511868,1746082240770,-404.23572212,0.00033,2]
[359512263,1746082244769,-94900.0,0.00033,2]
[359512377,1746082245993,-4803.65680307,0.00033,2]
[359513078,1746082804168,-153.07662859,0.00018585,2]
[359513079,1746082804192,-137.72188309,0.00018585,2]
[359513080,1746082808672,-362.27811691,0.00018585,2]
[359513081,1746082808694,-137.72188309,0.00018585,2]
[359513082,1746082811049,-362.27811691,0.00018585,2]
[359513083,1746082862902,-222.75435154,0.00018485,2]
[359513084,1746082862924,-300.0,0.00018584,2]
[359513085,1746082862945,-500.0,0.00018585,2]
[359513086,1746082862967,-500.0,0.00018585,2]
[359513087,1746082862987,-500.0,0.00018585,2]
[359513088,1746082863008,-500.0,0.00018585,2]
[359513089,1746082863032,-500.0,0.00018585,2]
[359513090,1746082863053,-82.24564846,0.00018585,2]
[359513091,1746082864815,-269.11077915,0.00018585,2]
[359513092,1746082869201,-148.64357239,0.00018585,2]
[359513093,1746082869226,-136.92668494,0.00020265,2]
[359513094,1746082878431,-283.07331506,0.00020265,2]
[359513095,1746082878455,-150.54454927,0.00022098,2]
[359513096,1746082886672,-398.54916676,0.00022098,2]
[359513097,1746082892122,-37.90628397,0.00022098,2]
[359513098,1746083019187,-192.51524124,0.00023554,2]
[359513099,1746083019209,-213.273961,0.00026179,2]
[359513100,1746083019232,-300.0,0.00026497,2]
[359513101,1746083019256,-50000.0,0.00026498,2]
[359513102,1746083019278,-500.0,0.00026498,2]
[359513103,1746083019300,-500.0,0.00026498,2]
[359513104,1746083019321,-348.46529431,0.00026498,2]
[359513105,1746083019341,-500.0,0.00026498,2]
[359513106,1746083019364,-500.0,0.00026498,2]
[359513107,1746083019386,-358.90231742,0.00026498,2]
[359513108,1746083019406,-635.53108082,0.00026498,2]
[359513109,1746083019428,-500.0,0.00026498,2]
[359513110,1746083019451,-500.0,0.00026498,2]
[359513111,1746083019472,-500.0,0.00026498,2]
[359513112,1746083019495,-500.0,0.00026498,2]
[359513113,1746083019517,-196.24030315,0.00026498,2]
[359513114,1746083019538,-500.0,0.00026498,2]
[359513115,1746083019560,-636.10741891,0.00026498,2]
[359513116,1746083019582,-500.0,0.00026498,2]
[359513117,1746083019604,-500.0,0.00026498,2]
[359513118,1746083019629,-500.0,0.00026498,2]
[359513119,1746083019651,-500.0,0.00026498,2]
[359513120,1746083019673,-500.0,0.00026498,2]
[359513121,1746083019694,-500.0,0.00026498,2]
[359513122,1746083019722,-500.0,0.00026498,2]
[359513123,1746083019745,-500.0,0.00026498,2]
[359513124,1746083019769,-500.0,0.00026498,2]
[359513125,1746083019793,-500.0,0.00026498,2]
[359513126,1746083019816,-500.0,0.00026498,2]
[359513127,1746083019838,-1200.0,0.00026498,2]
[359513128,1746083019860,-2637.5453292,0.00026499,2]
[359513129,1746083019882,-162.2624692,0.00026499,2]
[359513130,1746083019904,-180.4709491,0.00026499,2]
[359513131,1746083019926,-24900.0,0.00026499,2]
[359513132,1746083019952,-207.92202462,0.000269,16]
[359513133,1746083019974,-152.0,0.00026939,2]
[359513134,1746083098156,202.8,0.00021,10]
[359513135,1746083103108,194.0,0.00025,14]
[359513136,1746083103141,1376.0,0.000252,2]
[359513137,1746083111270,-849.051678,0.00027397,2]
[359513138,1746083111292,-162.0,0.00027397,3]
[359513139,1746083111313,-2540.54372556,0.00028328,2]
[359513140,1746083111336,-279.0,0.00028336,2]
[359513141,1746083111358,-300.0,0.00028336,2]
[359513142,1746083111384,-299.58225591,0.00028337,2]
[359513143,1746083111409,-500.0,0.00028337,2]
[359513144,1746083111435,-292.90082432,0.00028337,2]
[359513145,1746083111457,-1000.0,0.00028338,15]
[359513146,1746083111478,-1000.0,0.00028338,15]
[359513147,1746083111499,-1000.0,0.00028338,15]
[359513148,1746083111520,-1000.0,0.00028338,15]
[359513149,1746083111541,-1000.0,0.00028338,15]
[359513150,1746083111561,-1000.0,0.00028338,15]
[359513151,1746083111581,-1000.0,0.00028338,15]
[359513152,1746083111602,-1000.0,0.00028338,15]
[359513153,1746083111623,-1000.0,0.00028338,15]
[359513154,1746083111644,-1000.0,0.00028338,15]
[359513155,1746083111664,-1000.0,0.00028338,15]
[359513156,1746083111687,-1000.0,0.00028338,15]
[359513157,1746083111708,-1000.0,0.00028338,15]
[359513158,1746083111729,-1000.0,0.00028338,15]
[359513159,1746083111748,-1000.0,0.00028338,15]
[359513160,1746083111770,-668.75946216,0.00028338,15]
[359513161,1746083111792,-160.0,0.00028338,2]
[359513162,1746083111815,-504.80803374,0.00028373,5]
[359513163,1746083111838,-274.96966962,0.00028373,5]
[359513164,1746083111859,-623.2087604,0.00028373,5]
[359513165,1746083111885,-207.92202459,0.000289,20]
[359513166,1746083170383,159.0,0.00027397,3]
[359513167,1746083194183,554.36186983,0.00029,7]
[359513168,1746083250139,-333.20266064,0.00029348,2]
[359513169,1746083252029,5373.91826005,0.00027297,2]
[359513170,1746083347098,-300.0,0.00029247,2]
[359513171,1746083347120,-4305.37256674,0.00029248,2]
[359513172,1746083385468,313.5174939,0.00027,3]
[359513173,1746083386418,313.5174939,0.00027,3]
[359513174,1746083401444,1598.74562425,0.00026238,2]
[359513175,1746083404586,150.0,0.00029,2]
[359513206,1746083438226,-300.0,0.00029247,2]
[359513207,1746083438236,-19568.17769112,0.00029248,2]
[359513208,1746083438246,-3645.82536356,0.00029348,2]
[359513209,1746083438255,-197.343602,0.0002967,2]
[359513210,1746083438266,-320.1901891,0.000297,2]
[359513211,1746083438275,-160.0,0.00029708,2]
[359513212,1746083438285,-319.0,0.0003,2]
[359513213,1746083438295,-160.0,0.00030023,2]
[359513214,1746083438306,-250.0,0.00030074,2]
[359513215,1746083438315,-217.45503523,0.000309,23]
[359513216,1746083438325,-210.34313683,0.00030989,2]
[359513217,1746083438335,-166.92609329,0.00030989,2]
[359513218,1746083438344,-500.0,0.00030989,2]
[359513219,1746083438354,-464.1804025,0.00030989,2]
[359513220,1746083438364,-500.0,0.00030989,2]
[359513221,1746083438373,-183.12785937,0.00030989,2]
[359513222,1746083438394,-100000.0,0.0003099,2]
[359513223,1746083438406,-160.0,0.00031028,2]
[359513224,1746083438417,-388.16447987,0.00031029,2]
[359513225,1746083438428,-50000.0,0.00031029,2]
[359513226,1746083438439,-161.14138799,0.00031078,2]
[359513227,1746083438448,-502.0,0.00031078,2]
[359513228,1746083438459,-1598.74562425,0.00031238,2]
[359513229,1746083438469,-388.16447987,0.0003124,2]
[359513230,1746083438479,-420.0,0.00031546,2]
[359513231,1746083438488,-213.6555,0.00031598,2]